Cogmind - Beta 15 @@@ ROGUE MODE // 2025.07.13 @ 01:23:15 Player: jumpy Result: Destroyed by B-75 Beast with Magnetic Acceleration Cannon Performance ------------- Evolutions (3) 1500 Regions Visited (7) 1400 Robots Destroyed (46) 230 Value Destroyed (1550) 1550 Prototype IDs (4) 80 Alien Tech Used (0) 0 Bonus (239) 239 TOTAL SCORE: 4999 Bonus ------- Follower Combat Kills 39 Entered Garrisons 200 Cogmind --------- Core Integrity 0/700 Matter 73/300 Energy 98/100 System Corruption 0% Temperature Cool (12) Movement Core (200) Ox3 Location -7/Garrison Parts ------- > --- POWER (1) -------- (None) > --- PROPULSION (5) --- (None) > --- UTILITY (5) ------ Medium Storage Unit Improved Melee Analysis Suite > --- WEAPON (2) ------- (None) > --- INVENTORY (10) --- Enhanced Nuclear Core Enhanced Nuclear Core Improved Melee Analysis Suite Improved Medium Armor Plating Authchip [R/Combat] Relay Coupler [NC] (25) Relay Coupler [Grunt] (31) Peak State ------------ > --- POWER ------------ Enhanced Nuclear Core > --- PROPULSION ------- Light Treads Light Treads Armored Treads Medium Treads Medium Treads > --- UTILITY ---------- Medium Storage Unit Makeshift Terrain Scanner Improved Melee Analysis Suite Improved Medium Armor Plating > --- WEAPON ----------- Rocket Array Chainsword > --- INVENTORY -------- Enhanced Nuclear Core Enhanced Nuclear Core Light Treads Improved Melee Analysis Suite Improved Medium Armor Plating Authchip [R/Combat] Relay Coupler [NC] Relay Coupler [Grunt] Gauss Rifle [Rating: 46] Favorites ----------- Power Improved Ion Engine Engine Improved Ion Engine Power Core Enhanced Nuclear Core Propulsion Light Treads Treads Light Treads Wheel Wheel Utility Seismic Detector Device Seismic Detector Storage Small Storage Unit Processor Improved Melee Analysis Suite Protection Improved Medium Armor Plating Weapon Beam Cannon Energy Gun Medium Laser Energy Cannon Beam Cannon Ballistic Gun Gauss Rifle Launcher Rocket Array Slashing Weapon Chainsword Build | -11 -10 -10 -10 -9 -8 -7 -7 ------- Run | Yrd Mat Min Exi Min Mat Fac Gar Slots Evolved 6 | . . . . . 4 2 . Power . | . . . . . . . . Propulsion 3 | . . . . . 2 1 . Utility 3 | . . . . . 2 1 . Weapon . | . . . . . . . . Parts Attached 42 | 8 4 . 1 3 10 12 4 Power 8 | 2 1 . . 1 1 3 . Engine 5 | 2 1 . . 1 1 . . Core 3 | . . . . . . 3 . Reactor . | . . . . . . . . Propulsion 14 | 2 . . . 2 5 3 2 Treads 12 | 2 . . . . 5 3 2 Leg . | . . . . . . . . Wheel 2 | . . . . 2 . . . Hover . | . . . . . . . . Flight . | . . . . . . . . Utility 9 | 2 . . 1 . 1 4 1 Device 3 | 1 . . . . . 1 1 Storage 4 | 1 . . 1 . 1 1 . Processor 1 | . . . . . . 1 . Hackware . | . . . . . . . . Protection 1 | . . . . . . 1 . Artifact . | . . . . . . . . Weapon 11 | 2 3 . . . 3 2 1 Energy Gun 2 | 2 . . . . . . . Energy Cannon 3 | . 3 . . . . . . Ballistic Gun 1 | . . . . . . 1 . Ballistic Cannon . | . . . . . . . . Launcher 4 | . . . . . 3 . 1 Special Weapon . | . . . . . . . . Impact Weapon . | . . . . . . . . Slashing Weapon 1 | . . . . . . 1 . Piercing Weapon . | . . . . . . . . Special Melee Weapon . | . . . . . . . . Unidentified Prototypes 2 | . . . . . 1 1 . Parts Lost 27 | . . . . 2 11 1 13 Power 4 | . . . . . 2 1 1 Propulsion 12 | . . . . 1 5 . 6 Utility 4 | . . . . . 1 . 3 Weapon 7 | . . . . 1 3 . 3 Highest Loss Streak 12 | . . . . 1 6 1 12 To Critical Strikes . | . . . . . . . . Average Backups 6 | 3 7 8 7 6 4 3 8 Power 1 | . 1 2 2 1 . 1 2 Propulsion 1 | 1 2 2 1 . . . . Utility 2 | . 2 2 2 3 2 1 4 Weapon 1 | . 1 2 2 1 . 1 1 Tool/Special . | . . . . . . . . Unused Backups 14 | 1 2 . 2 . 2 1 6 Power 3 | . . . . . . 1 2 Propulsion 1 | . . . 1 . . . . Utility 7 | 1 . . 1 . 1 . 4 Weapon 3 | . 2 . . . 1 . . Tool/Special . | . . . . . . . . Average Slot Usage (%) 78 | . 100 100 80 92 45 49 84 Engine 8 | . 14 14 14 14 5 . . Core 1 | . . . . . . 4 6 Treads 25 | . 28 28 28 15 13 19 34 Wheel 1 | . . . . 6 9 . . Device 10 | . 14 14 14 14 2 6 6 Storage 10 | . 14 14 14 14 8 3 7 Processor 1 | . . . . . . 3 7 Protection 1 | . . . . . . . 6 Energy Cannon 11 | . 21 28 9 27 . . . Slashing Weapon 2 | . . . . . . 6 6 Peak Build Rating 46 | 7 9 9 10 10 25 44 46 Average Rating 16 | 5 8 9 8 9 11 27 41 On Entrance 11 | . 7 9 9 10 7 2 44 Naked Turns 42 | . . . . . 15 27 . Heaviest Build 54 | 14 19 19 24 24 54 33 36 Greatest Support 116 | 40 40 40 40 40 80 96 116 Greatest Overweight (x) 3 | . . . . 2 3 . 3 Average Overweight (x) . | . . . . 1 . . . Largest Inventory Capacity 20 | 8 8 8 10 10 20 10 10 Average Capacity 9 | 7 8 8 8 10 18 7 10 Most Carried 9 | 6 8 8 8 7 7 6 9 Average Carried 6 | 3 7 8 7 6 4 3 8 Final Capacity 10 | 8 8 8 10 10 5 10 10 Final Carried 8 | 6 8 8 7 5 5 6 7 Class Distribution -------------------- 98% | Mutant Dominant Class ---------------- Mutant | -10/Materials Mutant | -10/Mines Mutant | -10/Exiles Mutant | -9/Mines Mutant | -8/Materials Mutant | -7/Factory Mutant | -7/Garrison Resources | -11 -10 -10 -10 -9 -8 -7 -7 ----------- Run | Yrd Mat Min Exi Min Mat Fac Gar Matter Collected 968 | 280 49 5 . 195 101 178 160 Remotely . | . . . . . . . . Salvage Created 1397 | 232 190 98 . 121 217 257 282 Parts 70 | 19 5 3 . . 7 13 23 Haulers Intercepted 3 | . 1 . . . 1 1 . Recyclers Shooed 1 | 1 . . . . . . . Parts Field Recycled . | . . . . . . . . Retrieved Matter . | . . . . . . . . Parts Self-Destructed . | . . . . . . . . Prevented . | . . . . . . . . Kills | -11 -10 -10 -10 -9 -8 -7 -7 ------- Run | Yrd Mat Min Exi Min Mat Fac Gar Combat Hostiles Destroyed 38 | . 3 2 . 8 9 2 14 Melee 6 | . . . . . . 2 4 Cannons 12 | . 3 2 . 7 . . . AOE 20 | . . . . 1 9 . 10 Classes Destroyed 11 | 2 2 . . 1 4 1 1 Worker 1 | . . . . . . 1 . Builder 1 | . . . . . 1 . . Tunneler 7 | 7 . . . . . . . Hauler 3 | . 1 . . . 1 1 . Recycler 2 | 1 . . . . . 1 . Operator 1 | . . . . . 1 . . Swarmer 9 | . . . . . . . 9 Grunt 17 | . 3 2 . 1 7 2 2 Brawler 1 | . . . . . 1 . . Sentry 4 | . . . . . 1 . 3 Assembled 7 | . . . . 7 . . . Best Kill Streak 7 | 3 2 2 . 3 7 3 5 Combat Bots Only 5 | . 2 2 . 3 5 2 5 Max Kills in Single Turn 4 | 1 1 1 . 1 4 1 3 Gunslinging . | . . . . . . . . Exploded 4 | . . . . 1 4 . 3 Melee 1 | . . . . . . 1 1 Uniques/NPCs Destroyed . | . . . . . . . . Combat | -11 -10 -10 -10 -9 -8 -7 -7 -------- Run | Yrd Mat Min Exi Min Mat Fac Gar Hostile Shots Fired 559 | . 15 2 . 43 259 50 190 Missed 169 | . 6 . . 6 88 12 57 Hits 390 | . 9 2 . 37 171 38 133 Melee 3 | . . . . 3 . . . Projectile 387 | . 9 2 . 34 171 38 133 Critical Strikes 7 | . . . . 1 4 2 . Damage Taken 5809 | . 115 27 . 600 2451 548 2068 Core 1360 | . 15 . . 139 502 115 589 Absorbed by Shields . | . . . . . . . . Core Remaining (%) 48 | 100 . . . 38 8 . . Volleys Fired 100 | 23 14 4 1 26 16 2 14 Largest 2 | 2 2 2 2 2 2 1 1 Hottest 120 | 90 120 120 120 120 90 28 45 Shots Fired 171 | 46 28 9 2 53 17 2 14 Gun 54 | 46 . . . . . 2 6 Cannon 92 | . 28 9 2 53 . . . Launcher 25 | . . . . . 17 . 8 Special . | . . . . . . . . Kinetic 8 | . . . . . . 2 6 Thermal 138 | 46 28 9 2 53 . . . Explosive 25 | . . . . . 17 . 8 Electromagnetic . | . . . . . . . . Robot Hit Streak 7 | 6 3 4 1 3 7 . 4 Robot Miss Streak 4 | 2 3 2 1 4 3 2 3 Penetration Max . | . . . . . . . . Secondary Targets . | . . . . . . . . Shots Hit Robots 124 | 31 15 5 1 26 8 10 28 Core Hits 113 | 9 5 3 . 12 40 3 41 Critical Kills . | . . . . . . . . Critical Parts Destroyed . | . . . . . . . . Critical Strikes 4 | . . . . . . 2 2 Sever 4 | . . . . . . 2 2 Melee Attacks 41 | . . . . . . 14 27 Impact . | . . . . . . . . Slashing 41 | . . . . . . 14 27 Piercing . | . . . . . . . . Sneak Attacks 4 | . . . . . . 4 . Combat Hostiles . | . . . . . . . . Follow-up Attacks . | . . . . . . . . Damage Inflicted 5453 | 375 262 97 38 476 1467 536 2202 Guns 449 | 375 . . . . . . 74 Cannons 859 | . 262 86 38 473 . . . Explosions 2869 | . . . . . 1419 . 1450 Melee 1214 | . . . . . . 536 678 Ramming 62 | . . 11 . 3 48 . . Kinetic 74 | . . . . . . . 74 Thermal 1234 | 375 262 86 38 473 . . . Explosive 2869 | . . . . . 1419 . 1450 Electromagnetic . | . . . . . . . . Impact . | . . . . . . . . Slashing 1214 | . . . . . . 536 678 Piercing . | . . . . . . . . Highest Corruption 2 | . 2 2 2 2 . . . Average Corruption 1 | . 1 2 2 2 . . . Corruption Purged . | . . . . . . . . Corruption Blocked . | . . . . . . . . Effects 30 | . 2 12 10 6 . . . Message Errors 9 | . . 5 2 2 . . . Matter Fused 7 | . 2 2 3 . . . . Heat Flow Errors 5 | . . 2 2 1 . . . Energy Discharges 4 | . . 1 2 1 . . . Parts Rejected 1 | . . . . 1 . . . Parts Fused 1 | . . . 1 . . . . Data Loss (major) 1 | . . 1 . . . . . Misfires 2 | . . 1 . 1 . . . Overload Shots . | . . . . . . . . Overflow Damage 147 | . . . . 6 21 84 36 Projectiles 6 | . . . . 6 . . . Explosions 31 | . . . . . 21 . 10 Melee 110 | . . . . . . 84 26 Knockbacks . | . . . . . . . . Impact . | . . . . . . . . Kinetic . | . . . . . . . . Secondary . | . . . . . . . . Self-Inflicted Damage 260 | . . . . . 25 . 235 Shots 12 | . . . . . 1 . 11 Rammed 12 | . . 1 . 2 9 . . Targets Rammed 12 | . . 1 . 2 9 . . Kicked . | . . . . . . . . Crushed . | . . . . . . . . Highest Temperature 437 | 120 426 270 170 437 10 2 8 Average Temperature 146 | 43 175 125 71 215 6 2 4 Received Heat Transfer 1149 | . 66 18 . 51 648 108 258 Effects 12 | . . . . 12 . . . Shutdowns 4 | . . . . 4 . . . Energy Bleed 2 | . . . . 2 . . . Interference 1 | . . . . 1 . . . Matter Decay 2 | . . . . 2 . . . Short Circuit 2 | . . . . 2 . . . Damage (minor) 1 | . . . . 1 . . . Siege Activations . | . . . . . . . . Martial Activations . | . . . . . . . . Shielding Activations . | . . . . . . . . Robots Disrupted . | . . . . . . . . Combat Hostiles . | . . . . . . . . Robots Corrupted . | . . . . . . . . Combat Hostiles . | . . . . . . . . Parts Fried . | . . . . . . . . Impact Corruptions . | . . . . . . . . Robots Melted . | . . . . . . . . Combat Hostiles . | . . . . . . . . Parts Melted 6 | 3 1 . . 2 . . . Heat Transferred 2805 | 992 555 185 74 999 . . . Parts Sabotaged . | . . . . . . . . Parts Stolen . | . . . . . . . . Parts Stripped . | . . . . . . . . Power Chain Reactions . | . . . . . . . . Alert | -11 -10 -10 -10 -9 -8 -7 -7 ------- Run | Yrd Mat Min Exi Min Mat Fac Gar Maximum Alert Level 1 | . . . . . 1 . 1 Low Security (%) 88 | 100 100 100 . 100 83 100 43 Level 1 11 | . . . . . 16 . 56 Level 2 . | . . . . . . . . Level 3 . | . . . . . . . . Level 4 . | . . . . . . . . Level 5 . | . . . . . . . . High Security . | . . . . . . . . Max Security . | . . . . . . . . Peak Influence 370 | 5 65 43 . 45 239 80 370 Initial 80 | . . 17 . . . 80 4 Average 46 | 1 11 6 . 2 90 17 177 Influence Increases 1138 | 40 93 53 . 78 362 72 440 Destroy 0b10 Robot/C 640 | . 60 40 . 40 180 40 280 Destroy 0b10 Robot/NC 75 | 40 5 . . . 15 15 . Destroy Leader 86 | . 12 10 . 10 42 2 10 Allied During Kill 16 | . . 3 . 13 . . . Successful Hack 6 | . . . . . 6 . . Disable Machine 30 | . 15 . . 15 . . . Anti-Garrison Action 50 | . . . . . . . 50 Destroy Structure 190 | . 1 . . . 119 . 70 Lose Combat Pursuer 45 | . . . . . . 15 30 Influence Decreases 818 | 40 48 98 . 78 185 242 127 Entered New Map 128 | . . 28 . . . 97 3 Time Decay 382 | 40 48 70 . 13 76 135 . Lost Part 243 | . . . . . 109 10 124 Lost Ally 65 | . . . . 65 . . . Squads Dispatched 7 | . 1 . . 1 5 . . Investigation 2 | . . . . 1 1 . . Extermination . | . . . . . . . . Reinforcement 5 | . 1 . . . 4 . . Assault . | . . . . . . . . Garrison . | . . . . . . . . Intercept . | . . . . . . . . Searches Triggered . | . . . . . . . . Construction Impeded 1 | . . . . . 1 . . Haulers Reinforced . | . . . . . . . . Active Scanning Responses . | . . . . . . . . Cargo Convoy Interrupts . | . . . . . . . . Stealth | -11 -10 -10 -10 -9 -8 -7 -7 --------- Run | Yrd Mat Min Exi Min Mat Fac Gar Distress Signals 4 | . 2 . . . 2 . . Communications Jammed . | . . . . . . . . Distress Signals . | . . . . . . . . Times Spotted 78 | . 8 2 . 24 22 6 16 Peak Tracking Total 12 | . 5 2 . 12 9 3 7 Tactical Retreats 4 | . . . . 1 . 1 2 Traps | -11 -10 -10 -10 -9 -8 -7 -7 ------- Run | Yrd Mat Min Exi Min Mat Fac Gar Traps Triggered 4 | . 2 . . . . . 2 Indirectly . | . . . . . . . . Trap Hack Attempts . | . . . . . . . . Triggered . | . . . . . . . . Disarmed . | . . . . . . . . Reprogrammed . | . . . . . . . . Reused . | . . . . . . . . Traps Extracted . | . . . . . . . . Installed . | . . . . . . . . Triggered . | . . . . . . . . Machines | -11 -10 -10 -10 -9 -8 -7 -7 ---------- Run | Yrd Mat Min Exi Min Mat Fac Gar Machines Disabled 3 | . 1 . . 1 . . 1 Max in Single Turn 1 | . 1 . . 1 . . 1 Garrison Relay 1 | . . . . . . . 1 Machines Repaired . | . . . . . . . . Machines Dismantled . | . . . . . . . . Machines Sabotaged . | . . . . . . . . Overloaded Fab Kills . | . . . . . . . . Hacking | -11 -10 -10 -10 -9 -8 -7 -7 --------- Run | Yrd Mat Min Exi Min Mat Fac Gar Machines Accessed 5 | . . . 1 1 1 1 1 Terminals 3 | . . . . 1 1 . 1 Fabricators . | . . . . . . . . Repair Stations . | . . . . . . . . Recycling Units . | . . . . . . . . Scanalyzers . | . . . . . . . . Garrison Access 1 | . . . . . . 1 . Total Hacks 31 | . . . 23 2 3 1 2 Successful 26 | . . . 23 1 1 1 . Failed 5 | . . . . 1 2 . 2 Catastrophic 1 | . . . . 1 . . . Database Lockouts . | . . . . . . . . Manual 4 | . . . . 1 3 . . Terminals 7 | . . . . 2 3 . 2 Fabricators . | . . . . . . . . Repair Stations . | . . . . . . . . Recycling Units . | . . . . . . . . Scanalyzers . | . . . . . . . . Garrison Access 1 | . . . . . . 1 . Terminal Hacks 25 | . . . 23 1 1 . . Record 23 | . . . 23 . . . . Prototype ID Bank 1 | . . . . . 1 . . Zone Layout 1 | . . . . 1 . . . Fabricator Hacks . | . . . . . . . . Repair Station Hacks . | . . . . . . . . Recycling Unit Hacks . | . . . . . . . . Scanalyzer . | . . . . . . . . Garrison Access Hacks 1 | . . . . . . 1 . Unlock Access 1 | . . . . . . 1 . Unauthorized Hacks . | . . . . . . . . Terminals . | . . . . . . . . Fabricators . | . . . . . . . . Repair Stations . | . . . . . . . . Recycling Units . | . . . . . . . . Scanalyzers . | . . . . . . . . Garrison Access . | . . . . . . . . Data Cores Recovered . | . . . . . . . . Used . | . . . . . . . . Hacking Detections 4 | . . . . 1 1 1 1 Full Trace Events 2 | . . . . 1 1 . . Feedback Events . | . . . . . . . . Feedback Blocked . | . . . . . . . . Robot Schematics Acquired . | . . . . . . . . Robots Built . | . . . . . . . . Authchips . | . . . . . . . . Time . | . . . . . . . . Total Robot Build Rating . | . . . . . . . . Part Schematics Acquired . | . . . . . . . . Parts Built . | . . . . . . . . Authchips . | . . . . . . . . Time . | . . . . . . . . Total Part Build Rating . | . . . . . . . . Parts Repaired . | . . . . . . . . Time . | . . . . . . . . Parts Recycled . | . . . . . . . . Recycled Matter . | . . . . . . . . Retrieved Matter . | . . . . . . . . Retrieved Components . | . . . . . . . . Parts Scanalyzed . | . . . . . . . . Part Schematics Acquired . | . . . . . . . . Parts Damaged . | . . . . . . . . Bothacking | -11 -10 -10 -10 -9 -8 -7 -7 ------------ Run | Yrd Mat Min Exi Min Mat Fac Gar Used RIF Installer . | . . . . . . . . Robots Hacked . | . . . . . . . . Non-combat . | . . . . . . . . Combat . | . . . . . . . . Robot Hacks Applied . | . . . . . . . . Relay Couplers Released 4 | . . . . . . . 4 Machine Destruction 4 | . . . . . . . 4 Fabnet Peak Effective % . | . . . . . . . . Robots Rewired 3 | . . . 3 . . . . Allies Hacked . | . . . . . . . . Hacks Repelled . | . . . . . . . . Allies | -11 -10 -10 -10 -9 -8 -7 -7 -------- Run | Yrd Mat Min Exi Min Mat Fac Gar Total Allies 7 | . . 1 3 3 . . . Largest Group 6 | . . 1 3 6 . . . Highest-Rated Group 77 | . . 31 37 77 . . . Highest-Rated Ally 31 | . . 31 21 21 . . . Total Orders . | . . . . . . . . Ally Attacks 32 | . . 5 . 27 . . . Total Damage 406 | . . 82 . 324 . . . Kills 5 | . . . . 5 . . . Allies Corrupted . | . . . . . . . . Allies Melted . | . . . . . . . . Intel | -11 -10 -10 -10 -9 -8 -7 -7 ------- Run | Yrd Mat Min Exi Min Mat Fac Gar Active Infowar (turns) 2730 | 45 221 447 731 287 66 500 433 Terrain 933 | . . . . . . 500 433 Seismic 1797 | 45 221 447 731 287 66 . . Robot Analysis Total . | . . . . . . . . Derelict Logs Recovered 2 | . . 1 . 1 . . . Drone Launches . | . . . . . . . . Drone Recoveries . | . . . . . . . . Exploration | -11 -10 -10 -10 -9 -8 -7 -7 ------------- Run | Yrd Mat Min Exi Min Mat Fac Gar Turns Passed 3237 | 343 221 447 731 287 216 528 464 Spaces Moved 1758 | 163 104 271 429 137 131 320 203 Core 88 | 4 . . . . 30 53 1 Treads 1524 | 159 104 271 429 61 31 267 202 Legs . | . . . . . . . . Wheels 146 | . . . . 76 70 . . Hover . | . . . . . . . . Flight . | . . . . . . . . Fastest Speed 50 | 50 160 160 160 90 50 50 160 Average Speed 151 | 157 160 160 160 132 109 144 162 Slowest Speed 330 | 160 160 160 160 240 330 165 240 Overloaded Moves . | . . . . . . . . Propulsion Burnouts . | . . . . . . . . Robots Hopped . | . . . . . . . . Potential Cave-ins . | . . . . . . . . Cave-ins Triggered . | . . . . . . . . Exploration Rate (%) 32 | 10 27 46 87 33 21 6 32 Regions Visited 7 Branch Regions 3 Pre-discovered Areas 1 | . . . 1 . . . . Known Exits Taken 1 | . . . . . . 1 . Unknown Exits Taken 6 | 1 1 1 1 1 1 . . Scrap Searched 1 | . . . . 1 . . . Spaces Dug 2 | . . . . . . . 2 Terrain Destroyed 314 | . . . . . 164 1 149 Melee 2 | . . . . . . . 2 Projectile 1 | . . . . . . 1 . AOE 311 | . . . . . 164 . 147 Terrain Rammed . | . . . . . . . . Walls Destroyed . | . . . . . . . . Machines Disabled . | . . . . . . . . Actions | -11 -10 -10 -10 -9 -8 -7 -7 --------- Run | Yrd Mat Min Exi Min Mat Fac Gar Total 2076 | 200 132 276 475 188 172 358 275 Wait 44 | . . 1 2 17 . 3 21 Move 1751 | 162 103 270 428 136 130 319 203 Hop . | . . . . . . . . Pick Up 28 | 6 6 . 3 . 3 6 4 Fast Attach 24 | 7 . . . 2 6 8 1 Attach 14 | . . . 2 1 3 4 4 Detach 1 | . . . . . . . 1 Swap 11 | 1 4 . 1 1 3 1 . Drop 17 | 1 5 . 5 3 2 1 . Fire 100 | 23 14 4 1 26 16 2 14 Melee 41 | . . . . . . 14 27 Ram . | . . . . . . . . Kick . | . . . . . . . . Crush 12 | . . 1 . 2 9 . . Escape Stasis . | . . . . . . . . Rewire 33 | . . . 33 . . . . Trap . | . . . . . . . . Miscellaneous . | . . . . . . . . Route ------- -11/Scrapyard -10/Materials -10/Mines -10/Exiles -9/Mines -8/Materials -7/Factory -7/Garrison (discovered 1 exit: [*Fac]) History --------- Turn | Location | Event 3 | -11/Scrapyard | Discovered new exit (range 15) 344 | -11/Scrapyard | Entered Materials 345 | -10/Materials | Build established: Mutant 550 | -10/Materials | Discovered new exit (range 10) 565 | -10/Materials | Entered Mines 568 | -10/Mines | Received a Mining Laser from a helpful Derelict 825 | -10/Mines | Found a hidden stash of uninstalled traps 972 | -10/Mines | Learned Materials terminal intel 1006 | -10/Mines | Deemed a non-threat by the Exiles lab entrance 1006 | -10/Mines | Discovered new exit (range 5) 1012 | -10/Mines | Entered Exiles 1012 | -10/Exiles | Found Exiles lab destroyed 1384 | -10/Exiles | Learned location of Zion (-6) 1725 | -10/Exiles | Discovered new exit (range 12) 1743 | -10/Exiles | Entered Mines 1743 | -9/Mines | Accompanied by 3 allies 1750 | -9/Mines | Learned 2 Materials zone layouts 1791 | -9/Mines | Assisted by bots powering up and referring to "LRC-V3" 1807 | -9/Mines | Assembled infested the area 1878 | -9/Mines | Lost 6 allies 1983 | -9/Mines | Discovered new exit (range 16) 2011 | -9/Mines | Core integrity fell below 50% 2030 | -9/Mines | Entered Materials 2030 | -8/Materials | Evolved 4 slots: Propulsion x2, Utility x2 2032 | -8/Materials | Loaded intel: 12 terminal locations 2178 | -8/Materials | Found Prototype Launcher 2178 | -8/Materials | Identified Rocket Array 2181 | -8/Materials | Found Rocket Array 2191 | -8/Materials | Lost 5 parts (2p1n1u1w) 2200 | -8/Materials | Found Rocket Array 2231 | -8/Materials | Core integrity fell below 50% 2231 | -8/Materials | Released all parts (2) 2237 | -8/Materials | Discovered new exit (range 15) 2241 | -8/Materials | Core integrity fell below 20% 2246 | -8/Materials | Entered Factory 2246 | -7/Factory | Evolved 2 slots: Propulsion x1, Utility x1 2259 | -7/Factory | Lost 6 parts (4n2w) 2773 | -7/Factory | Identified exit to Garrison 2774 | -7/Factory | Entered Garrison 2790 | -7/Garrison | Triggered checkpoint 2855 | -7/Garrison | Garrison Relay disabled 2968 | -7/Garrison | Triggered checkpoint 2974 | -7/Garrison | Triggered checkpoint 3180 | -7/Garrison | Spotted B-75 Beast 3186 | -7/Garrison | Discovered new exit (range 14) 3208 | -7/Garrison | Core integrity fell below 50% 3227 | -7/Garrison | Core integrity fell below 20% 3238 | -7/Garrison | Destroyed by B-75 Beast with Magnetic Acceleration Cannon Last Messages --------------- 03196_ Destroyed Med. Treads. 03199_ Acquired 8 matter. 03201_ Lgt. Treads destroyed. 03203_ Y-54 Guardian Flak Gun severed. 03206_ The unstable cave ceiling collapses. 03206_ Y-54 Guardian destroyed. 03207_ Knocked back. 03212_ The unstable cave ceiling collapses. 03212_ Acquired 24 matter. 03222_ Destroyed Lgt. Nuclear Core. 03222_ Destroyed VTOL Module. 03223_ Lgt. Treads destroyed. 03223_ Mak. Terrain Scanner destroyed. 03225_ Enh. Nuclear Core destroyed. 03226_ Chainsword destroyed. 03226_ S-27 Virus destroyed. 03227_ Acquired 29 matter. 03234_ Slug penetrates Wall. 03236_ Slug penetrates B-75 Beast. 03238_ Gauss Rifle destroyed. Map ----- +----------------------------------------------------+ | ?????????????????????????????????????????????????? | | ?????????????????????????????????????????????????? | | ?????????????????????????????????????????????????? | | ?????????????????????????????????????????????????? | | ?????????????????????????????????????????????????? | | ?????????????????????????????????????????????????? | | ?????????????????????????????????????????????????? | | ?????????????????????????????????????????????????? | | ?????????????????????????????????????????????????? | | ????????????????????????? ???????????????????????? | | ????????????????????????? ???????????????????????? | | ????????????????????????? ???????????????????????? | | ????????????????????????? ???????????????????????? | | ????????????????????????? ???????????????????????? | | ??????????????????####??? ???????????????????????? | | ?????????????????# ??? ???????????????????????? | | ?????????????????# ??# #??????????????????????? | | ????????????????## ??" #??????????????????????? | | ????????????????? "??" #??????????????????????? | | ??????????????????# %??" #??????????????????????? | | ????????????????### ### #??????????????????????? | | ??????? ###### # # #??????????????????????? | | ??????? # #%#??????????????????????? | | ??????? < #%#%#??????????????????????? | | ?????????? %%BB%#??????????????????????? | | ?????????????????## BB@#??????????????????????? | | ??????????????????# #####??????????????????????? | | ??????????????????# #% ?????????????????????????? | | ??????????????????# ###?????????????????????????? | | ??????????????????# #???????????????????????????? | | ??????????????????# #???????????????????????????? | | ??????????????????# #?????????????????????? #???? | | ??????????????????# #???????????????????? #???? | | ?????????????????## #????????######""""## #???? | | ?????????????????#T ########## #???? | | ?????????????????## * ^ #???? | | ??????????????????# #???? | | ??????????????????############# =## ## #???? | | ????????????????????????????### ## ## #???? | | ????????????????????????????# = "???? | | ????????????????????????????# * "???? | | ????????????????????????###?# "???? | | ????????????????????????# # [ "???? | | ????????????????????????# ### # ## #???? | | ????????????????????????# # # ## #???? | | ????????????????????????# # #???? | | ???????????????????????## # [ #???? | | ???????????????????????# #???? | | ???????????????????????## # ## #???? | | ????????????????????????# # ## #? #???? | +----------------------------------------------------+ Best States ------------- Heat Dissipation 34 Energy Generation 17 Energy Capacity 300 Matter Stores 300 Matter Capacity 300 Sight Range 16 Terrain Scan Range 18 Terrain Scan Density 10 Armor Coverage 225 Evasion (%) 50 Melee Accuracy 6 Recoil Reduction 5 Authchip Count 1 Item Schematics ----------------- None Robot Schematics ------------------ None Fabricated ------------ Nothing Repaired ---------- Nothing Alien Tech Used ----------------- None Achievements -------------- None Challenges ------------ None Game ------ Seed GravitySwarmDerivative Manual? 0 Play Time 00:19:51 Cumulative 152.8 hours Start 2025.07.13 @ 01:04:14 End 2025.07.13 @ 01:23:15 Sessions 1 Manual Loads 0 Difficulty Rogue Special Mode None Game No. 386 Rogue 386 Adventurer 0 Explorer 0 Win Type - Total 5 Types 4/0/1/0/0/0/0/0/0/0 Lore% 69 Gallery% 59 Achievement% 48 Wizard Run 0 Options --------- Layout 0 ASCII 0 Keyboard 0 Movement Numpad Keybinds 0 Fullscreen 2 Font 18/Terminus Map View 76x50 Zoom Use 0% Tactical HUD 1 Map Filters NONE Filters NONE Steam 1 RUN: 72ee8a82-c9be-4df1-8aa0-3f9a18454a9b